Cogmind - Beta 14 @@@ ROGUE MODE // 2024.12.01 @ 17:22:52 Player: akira Result: Destroyed by G-50 Soldier with Heavy Laser Performance ------------- Evolutions (4) 2000 Regions Visited (9) 1800 Robots Destroyed (73) 365 Value Destroyed (2311) 2311 Prototype IDs (33) 660 Alien Tech Used (0) 0 Bonus (752) 752 TOTAL SCORE: 7888 Bonus ------- Follower Combat Kills 452 Aligned with FarCom 300 Cogmind --------- Core Integrity 0/850 Matter 300/300 Energy 30/100 System Corruption 11% Temperature Cool (9) Movement Core (50) Location -6/Extension Parts ------- > --- POWER (1) -------- (None) > --- PROPULSION (5) --- (None) > --- UTILITY (7) ------ Enhanced Optical Array Hacking Suite Hacking Suite System Shield > --- WEAPON (2) ------- (None) > --- INVENTORY (5) ---- Layered Light Armor Plating System Shield System Shield Thief Drone Bay (0/3) Signal Generator Peak State ------------ > --- POWER ------------ Light Angular Momentum Engine > --- PROPULSION ------- Cooled VTOL Module Cooled VTOL Module Cooled VTOL Module Cooled VTOL Module Cooled VTOL Module > --- UTILITY ---------- Medium Storage Unit Advanced Terrain Scanner Advanced Terrain Scan Processor Hacking Suite Hacking Suite Improved Hacking Suite System Shield > --- WEAPON ----------- Molecular Scythe > --- INVENTORY -------- Cooled VTOL Module Cooled VTOL Module Enhanced Optical Array Improved Reaction Control System Improved Utility Shielding Layered Light Armor Plating System Shield System Shield Thief Drone Bay Signal Generator [Rating: 66] Favorites ----------- Power Light Angular Momentum Engine Engine Light Angular Momentum Engine Power Core Micro Nuclear Core Propulsion Cooled VTOL Module Treads Light Treads Wheel Armored Huge Wheel Flight Unit Cooled VTOL Module Utility Hacking Suite Device Improved Terrain Scanner Storage Medium Storage Unit Processor Advanced Terrain Scan Processor Hackware Hacking Suite Protection Hardened Medium Armor Plating Weapon Molecular Scythe Energy Gun Beamcaster Energy Cannon Beam Cannon Ballistic Gun Minigun Ballistic Cannon Gauss Cannon Launcher Rocket Launcher Special Weapon Mining Laser Slashing Weapon Molecular Scythe Build | -11 -10 -10 -10 -9 -8 -7 -7 -6 -6 ------- Run | Yrd Mat Min Exi Min Mat Fac Sto Fac Ext Slots Evolved 8 | . . . . . 4 2 . 2 . Power . | . . . . . . . . . . Propulsion 3 | . . . . . 1 1 . 1 . Utility 5 | . . . . . 3 1 . 1 . Weapon . | . . . . . . . . . . Parts Attached 133 | 6 11 11 3 1 27 42 2 21 9 Power 16 | . 4 2 . . 2 5 . 2 1 Engine 7 | . 3 2 . . . . . 1 1 Core 9 | . 1 . . . 2 5 . 1 . Reactor . | . . . . . . . . . . Propulsion 42 | 2 1 5 . . 6 16 1 8 3 Treads 12 | 2 1 5 . . 4 . . . . Leg . | . . . . . . . . . . Wheel 4 | . . . . . 2 2 . . . Hover . | . . . . . . . . . . Flight 26 | . . . . . . 14 1 8 3 Utility 43 | 2 2 2 1 . 9 12 1 9 5 Device 16 | 1 . 2 . . 1 4 . 6 2 Storage 4 | 1 2 . . . 1 . . . . Processor 6 | . . . . . 2 3 . . 1 Hackware 10 | . . . . . 1 4 1 3 1 Protection 7 | . . . 1 . 4 1 . . 1 Artifact . | . . . . . . . . . . Weapon 32 | 2 4 2 2 1 10 9 . 2 . Energy Gun 8 | . 4 1 1 . 2 . . . . Energy Cannon 1 | . . 1 . . . . . . . Ballistic Gun 7 | 2 . . . . 3 2 . . . Ballistic Cannon 1 | . . . . . . 1 . . . Launcher 2 | . . . . 1 1 . . . . Special Weapon 2 | . . . 1 . 1 . . . . Impact Weapon . | . . . . . . . . . . Slashing Weapon 11 | . . . . . 3 6 . 2 . Piercing Weapon . | . . . . . . . . . . Special Melee Weapon . | . . . . . . . . . . Unidentified Prototypes 9 | . 1 1 . . 1 4 . 2 . Corrupted Parts 1 | . . . . . . . . . 1 System Corruption 8 | . . . . . . . . . 8 Parts Lost 19 | . . 3 . . . 2 2 1 11 Power 5 | . . 1 . . . 1 . 1 2 Propulsion 7 | . . . . . . 1 1 . 5 Utility 5 | . . . . . . . 1 . 4 Weapon 2 | . . 2 . . . . . . . Highest Loss Streak 6 | . . 1 . . . 1 1 1 6 To Critical Strikes . | . . . . . . . . . . Average Slot Usage (%) 92 | . 99 97 77 100 97 91 89 91 85 Engine 4 | . 12 13 14 14 2 . . 2 4 Core 3 | . 1 . . . 6 7 7 3 . Treads 8 | . 28 27 28 28 22 . . . . Flight 20 | . . . . . . 28 30 32 30 Device 6 | . 14 14 6 . 6 6 2 4 4 Storage 8 | . 14 14 14 14 9 7 7 6 5 Processor 5 | . . . . . 9 8 7 6 5 Hackware 15 | . . . . . 2 19 25 26 24 Protection 3 | . . . 6 14 18 2 . . . Energy Gun 3 | . 16 16 . 13 7 . . . . Ballistic Gun 2 | . 11 . . . 7 . . . . Slashing Weapon 4 | . . . . . . 6 7 6 5 Peak Build Rating 66 | 8 15 21 18 18 40 50 49 66 66 Average Rating 41 | 4 12 13 12 17 36 43 47 60 60 On Entrance 27 | . 8 14 21 18 16 37 49 49 66 Naked Turns . | . . . . . . . . . . Heaviest Build 42 | 9 24 28 28 28 42 42 20 24 25 Greatest Support 84 | 40 40 40 40 40 84 56 28 25 35 Greatest Overweight (x) 4 | . . 1 . . 1 1 1 . 4 Average Overweight (x) . | . . . . . . . . . . Largest Inventory Capacity 10 | 8 10 10 10 10 10 10 10 10 10 Average Capacity 9 | 7 9 10 10 10 10 10 10 10 9 Most Carried 10 | 8 10 10 10 10 10 10 10 10 10 Average Carried 9 | 6 9 8 9 9 9 9 9 9 9 Final Capacity 10 | 8 10 10 10 10 10 10 10 10 5 Final Carried 10 | 8 10 10 9 10 10 10 9 10 5 Class Distribution -------------------- 52% | Hacker-Scout 36% | Mutant 9% | Hacker-Sprinter Dominant Class ---------------- Mutant | -10/Materials Mutant | -10/Mines Mutant | -10/Exiles Mutant | -9/Mines Mutant | -8/Materials Hacker-Scout | -7/Factory Hacker-Sprinter | -7/Storage Hacker-Scout | -6/Factory Hacker-Scout | -6/Extension Resources | -11 -10 -10 -10 -9 -8 -7 -7 -6 -6 ----------- Run | Yrd Mat Min Exi Min Mat Fac Sto Fac Ext Matter Collected 2223 | 290 261 105 . 73 639 492 24 244 95 Remotely . | . . . . . . . . . . Salvage Created 2777 | 81 376 166 . 11 1026 517 24 435 141 Parts 193 | 7 29 9 . 6 57 39 5 37 4 Haulers Intercepted 2 | . . . . . 1 1 . . . Recyclers Shooed 2 | . 1 . . . 1 . . . . Parts Field Recycled . | . . . . . . . . . . Retrieved Matter . | . . . . . . . . . . Parts Self-Destructed . | . . . . . . . . . . Prevented . | . . . . . . . . . . Kills | -11 -10 -10 -10 -9 -8 -7 -7 -6 -6 ------- Run | Yrd Mat Min Exi Min Mat Fac Sto Fac Ext Combat Hostiles Destroyed 51 | . 12 6 . 4 17 4 . 6 2 Melee 12 | . . . . . . 4 . 6 2 Guns 32 | . 12 3 . . 17 . . . . Cannons 3 | . . 3 . . . . . . . AOE 4 | . . . . 4 . . . . . Classes Destroyed 13 | 1 3 1 . . 4 3 . 1 . Worker 1 | . . . . . 1 . . . . Builder 1 | . . . . . . . . 1 . Tunneler 3 | 3 . . . . . . . . . Hauler 2 | . . . . . 1 1 . . . Recycler 3 | . . . . . . 2 . 1 . Operator 6 | . . . . . . 4 1 . 1 Watcher 6 | . 2 . . . 1 2 . 1 . Swarmer 14 | . 6 4 . 4 . . . . . Grunt 19 | . 6 . . . 12 . . . 1 Brawler 1 | . . . . . 1 . . . . Sentry 6 | . . 2 . . 3 . . . 1 Hunter 1 | . . . . . 1 . . . . Programmer 10 | . . . . . . 4 . 6 . Best Kill Streak 5 | 1 3 2 . 4 5 3 1 2 2 Combat Bots Only 5 | . 3 2 . 4 5 1 . 1 2 Max Kills in Single Turn 2 | 1 1 1 . 2 1 1 1 1 1 Gunslinging . | . . . . . . . . . . Exploded 2 | . . . . 2 . . . . . Melee 1 | . . . . . . 1 . 1 1 Uniques/NPCs Destroyed . | . . . . . . . . . . Combat | -11 -10 -10 -10 -9 -8 -7 -7 -6 -6 -------- Run | Yrd Mat Min Exi Min Mat Fac Sto Fac Ext Hostile Shots Fired 624 | . 71 64 . 9 86 29 85 38 242 Missed 234 | . 15 14 . 2 22 9 51 15 106 Damage Taken 4813 | . 608 511 . 85 1053 407 376 297 1476 Core 1568 | . 82 130 . 6 112 222 158 123 735 Absorbed by Shields 5 | . . . . . . . . . 5 Redirected to Shielding 22 | . . . . . . 22 . . . Regen/Repaired (Parts) 206 | . . . . . . 23 . 143 40 Core Remaining (%) 59 | 100 . . . 12 79 . 45 . . Volleys Fired 165 | 18 54 22 . 5 66 . . . . Largest 2 | 2 2 2 . 1 2 . . . . Hottest 121 | 40 121 121 . 33 100 . . . . Shots Fired 291 | 22 93 42 . 7 127 . . . . Gun 267 | 22 93 25 . 2 125 . . . . Cannon 17 | . . 17 . . . . . . . Launcher 6 | . . . . 5 1 . . . . Special 1 | . . . . . 1 . . . . Kinetic 134 | 22 50 . . . 62 . . . . Thermal 151 | . 43 42 . 2 64 . . . . Explosive 6 | . . . . 5 1 . . . . Electromagnetic . | . . . . . . . . . . Robot Hit Streak 10 | 8 5 10 . 2 8 . . . . Robot Miss Streak 5 | 3 3 5 . 3 4 . . . . Penetration Max . | . . . . . . . . . . Secondary Targets 5 | . 3 . . . 2 . . . . Max Gunslinging Chain 1 | . 1 . . . 1 . . . . Shots Hit Robots 221 | 16 52 22 . 2 73 30 1 16 9 Core Hits 100 | 7 23 8 . 6 38 10 1 5 2 Critical Kills . | . . . . . . . . . . Critical Parts Destroyed 1 | . 1 . . . . . . . . Critical Strikes 13 | . 1 . . . 6 2 . 2 2 Burn 6 | . . . . . 6 . . . . Destroy 1 | . 1 . . . . . . . . Sever 6 | . . . . . . 2 . 2 2 Melee Attacks 220 | . . . . . 2 92 10 103 13 Impact . | . . . . . . . . . . Slashing 220 | . . . . . 2 92 10 103 13 Piercing . | . . . . . . . . . . Sneak Attacks 10 | . . . . . . 6 . 3 1 Combat Hostiles . | . . . . . . . . . . Follow-up Attacks . | . . . . . . . . . . Damage Inflicted 6034 | 142 663 376 . 297 1495 1550 46 948 517 Guns 2464 | 142 657 200 . . 1465 . . . . Cannons 176 | . . 176 . . . . . . . Explosions 301 | . . . . 297 4 . . . . Melee 3087 | . . . . . 26 1550 46 948 517 Ramming 6 | . 6 . . . . . . . . Kinetic 1113 | 142 305 . . . 666 . . . . Thermal 1527 | . 352 376 . . 799 . . . . Explosive 301 | . . . . 297 4 . . . . Electromagnetic . | . . . . . . . . . . Impact . | . . . . . . . . . . Slashing 3087 | . . . . . 26 1550 46 948 517 Piercing . | . . . . . . . . . . Highest Corruption 11 | . 3 3 3 3 . 5 5 3 11 Average Corruption 2 | . 2 3 3 3 . 2 5 2 4 Corruption Purged . | . . . . . . . . . . Corruption Blocked . | . . . . . . . . . . Effects 130 | . 18 11 9 12 . 32 5 25 18 Message Errors 25 | . 5 2 1 . . 6 1 8 2 Matter Fused 34 | . 8 . 2 6 . 10 1 3 4 Heat Flow Errors 20 | . 3 . 1 . . 5 1 5 5 Energy Discharges 20 | . 1 2 4 2 . 5 1 4 1 Parts Rejected 2 | . . 1 . . . . . . 1 Parts Fused 4 | . 1 1 . . . 1 . . 1 Data Loss (minor) 19 | . . 3 1 1 . 5 1 5 3 Data Loss (major) 3 | . . 2 . 1 . . . . . Misfires 2 | . . . . 2 . . . . . Misdirections 1 | . . . . . . . . . 1 Overload Shots . | . . . . . . . . . . Overflow Damage 613 | . . . . 15 . 319 . 229 50 Projectiles . | . . . . . . . . . . Explosions 15 | . . . . 15 . . . . . Melee 598 | . . . . . . 319 . 229 50 Knockbacks 1 | . 1 . . . . . . . . Impact 1 | . 1 . . . . . . . . Kinetic . | . . . . . . . . . . Secondary . | . . . . . . . . . . Self-Inflicted Damage 65 | . . . . 25 40 . . . . Shots 2 | . . . . 1 1 . . . . Rammed 3 | . 3 . . . . . . . . Targets Rammed 3 | . 3 . . . . . . . . Kicked . | . . . . . . . . . . Crushed . | . . . . . . . . . . Highest Temperature 555 | . 513 500 269 48 555 265 135 218 427 Average Temperature 154 | . 154 236 138 15 160 106 55 103 150 Received Heat Transfer 1342 | . 177 63 . . 558 36 81 6 421 Effects 24 | . 3 9 . . 12 . . . . Shutdowns 5 | . 2 1 . . 2 . . . . Energy Bleed 3 | . . 1 . . 2 . . . . Interference 5 | . . . . . 5 . . . . Matter Decay 1 | . . . . . 1 . . . . Damage (minor) 3 | . 1 2 . . . . . . . Damage (major) 6 | . . 4 . . 2 . . . . Damage (core) 1 | . . 1 . . . . . . . Siege Activations . | . . . . . . . . . . Robots Corrupted . | . . . . . . . . . . Combat Hostiles . | . . . . . . . . . . Parts Fried . | . . . . . . . . . . Impact Corruptions . | . . . . . . . . . . Robots Melted . | . . . . . . . . . . Combat Hostiles . | . . . . . . . . . . Parts Melted 4 | . 1 . . . 3 . . . . Heat Transferred 3478 | . 814 814 . . 1850 . . . . Parts Sabotaged . | . . . . . . . . . . Parts Stolen . | . . . . . . . . . . Parts Stripped . | . . . . . . . . . . Power Chain Reactions . | . . . . . . . . . . Alert | -11 -10 -10 -10 -9 -8 -7 -7 -6 -6 ------- Run | Yrd Mat Min Exi Min Mat Fac Sto Fac Ext Peak Influence 456 | 15 135 151 . 135 290 292 290 305 456 Initial 142 | . 9 36 . . 52 75 116 131 142 Average 124 | 4 58 100 . 5 158 142 172 115 257 Maximum Alert Level 2 | . . . . . 1 1 1 1 2 Low Security (%) 73 | 100 100 100 . 100 68 61 67 75 26 Level 1 26 | . . . . . 31 38 32 24 65 Level 2 . | . . . . . . . . . 8 Level 3 . | . . . . . . . . . . Level 4 . | . . . . . . . . . . Level 5 . | . . . . . . . . . . High Security . | . . . . . . . . . . Max Security . | . . . . . . . . . . Squads Dispatched 31 | . 1 . . . 4 13 . 11 2 Investigation 18 | . 1 . . . 3 9 . 4 1 Extermination 8 | . . . . . . 3 . 5 . Reinforcement 4 | . . . . . . 1 . 2 1 Assault . | . . . . . . . . . . Garrison 1 | . . . . . 1 . . . . Intercept . | . . . . . . . . . . Searches Triggered . | . . . . . . . . . . Construction Impeded 1 | . . . . . . . . . 1 Haulers Reinforced . | . . . . . . . . . . Active Scanning Responses . | . . . . . . . . . . Cargo Convoy Interrupts 1 | . . . . . . . . 1 . Stealth | -11 -10 -10 -10 -9 -8 -7 -7 -6 -6 --------- Run | Yrd Mat Min Exi Min Mat Fac Sto Fac Ext Distress Signals 7 | . 1 . . . 1 . . 3 2 Communications Jammed . | . . . . . . . . . . Distress Signals . | . . . . . . . . . . Times Spotted 150 | . 18 8 . 4 26 23 17 24 30 Peak Tracking Total 11 | . 4 3 . 4 5 3 11 6 9 Tactical Retreats 19 | . . 1 . . . 2 4 4 8 Traps | -11 -10 -10 -10 -9 -8 -7 -7 -6 -6 ------- Run | Yrd Mat Min Exi Min Mat Fac Sto Fac Ext Traps Triggered 15 | . 2 . . . 2 5 1 1 4 Indirectly . | . . . . . . . . . . Trap Hack Attempts . | . . . . . . . . . . Triggered . | . . . . . . . . . . Disarmed . | . . . . . . . . . . Reprogrammed . | . . . . . . . . . . Reused . | . . . . . . . . . . Traps Extracted . | . . . . . . . . . . Installed . | . . . . . . . . . . Triggered 1 | . . . . . . . . 1 . Machines | -11 -10 -10 -10 -9 -8 -7 -7 -6 -6 ---------- Run | Yrd Mat Min Exi Min Mat Fac Sto Fac Ext Machines Disabled 6 | . 2 1 . 1 1 . . . 1 Max in Single Turn 1 | . 1 1 . 1 1 . . . . Garrison Access 3 | . . . . . . 1 . 2 . Machines Repaired . | . . . . . . . . . . Machines Dismantled . | . . . . . . . . . . Machines Sabotaged . | . . . . . . . . . . Overloaded Fab Kills . | . . . . . . . . . . Hacking | -11 -10 -10 -10 -9 -8 -7 -7 -6 -6 --------- Run | Yrd Mat Min Exi Min Mat Fac Sto Fac Ext Machines Accessed 62 | . 4 1 1 . 6 17 2 23 8 Terminals 43 | . 4 . . . 5 11 2 14 7 Fabricators 7 | . . . . . . 4 . 3 . Repair Stations 5 | . . . . . . 1 . 3 1 Recycling Units 1 | . . . . . . . . 1 . Scanalyzers . | . . . . . . . . . . Garrison Access 4 | . . . . . 1 1 . 2 . Total Hacks 162 | . 7 1 1 . 11 52 3 69 18 Successful 105 | . 2 1 1 . 5 35 2 46 13 Failed 57 | . 5 . . . 6 17 1 23 5 Catastrophic 11 | . 3 . . . . 5 . 3 . Database Lockouts . | . . . . . . . . . . Manual 93 | . 9 . 1 . 8 25 2 40 8 Terminals 111 | . 7 . . . 9 32 3 46 14 Fabricators 21 | . . . . . . 15 . 6 . Repair Stations 16 | . . . . . . 2 . 10 4 Recycling Units 3 | . . . . . . . . 3 . Scanalyzers . | . . . . . . . . . . Garrison Access 9 | . . . . . 2 3 . 4 . Terminal Hacks 39 | . 1 1 1 . 2 13 1 14 6 Part Schematic 7 | . . . . . . 2 . 5 . Robot Analysis 1 | . 1 . . . . . . . . Open Door 7 | . . 1 . . . . 1 1 4 Level Access Points 2 | . . . . . . . . . 2 Branch Access Points 1 | . . . . . . 1 . . . Machine Index 1 | . . . . . . . . 1 . Terminal Index 1 | . . . . . . 1 . . . Alert Level 4 | . . . . . 1 2 . 1 . Unreport Threat 3 | . . . . . . 2 . 1 . Locate Traps 1 | . . . . . . 1 . . . Patrol Status 1 | . . . . . . . . 1 . Recall Investigation 5 | . . . . . . 3 . 2 . Recall Reinforcements 2 | . . . . . . . . 2 . Hauler Manifests 1 | . . . . . 1 . . . . Registered Prototypes 1 | . . . . . . 1 . . . Derelict Proto ID Bank 1 | . . . 1 . . . . . . Fabricator Hacks 18 | . . . . . . 12 . 6 . Network Status 2 | . . . . . . 2 . . . Load Schematic 8 | . . . . . . 5 . 3 . Build 8 | . . . . . . 5 . 3 . Repair Station Hacks 15 | . . . . . . 2 . 9 4 Scan Component 8 | . . . . . . 1 . 5 2 Repair 7 | . . . . . . 1 . 4 2 Recycling Unit Hacks 2 | . . . . . . . . 2 . Process 1 | . . . . . . . . 1 . Report Inventory 1 | . . . . . . . . 1 . Scanalyzer . | . . . . . . . . . . Garrison Access Hacks 3 | . . . . . . 1 . 2 . Seal Access 3 | . . . . . . 1 . 2 . Unauthorized Hacks 28 | . 1 . . . 3 7 1 13 3 Terminals 28 | . 1 . . . 3 7 1 13 3 Assimilate 11 | . . . . . 1 1 . 7 2 Botnet 17 | . 1 . . . 2 6 1 6 1 Fabricators . | . . . . . . . . . . Repair Stations . | . . . . . . . . . . Recycling Units . | . . . . . . . . . . Scanalyzers . | . . . . . . . . . . Garrison Access . | . . . . . . . . . . Data Cores Recovered 2 | . . . . . . 1 1 . . Used . | . . . . . . . . . . Hacking Detections 45 | . 4 . . . 4 16 1 16 4 Full Trace Events 14 | . . . . . 1 8 . 4 1 Feedback Events . | . . . . . . . . . . Feedback Blocked . | . . . . . . . . . . Robot Schematics Acquired . | . . . . . . . . . . Robots Built 4 | . . . . . . 4 . . . Authchips . | . . . . . . . . . . Time 134 | . . . . . . 134 . . . Total Robot Build Rating 16 | . . . . . . 16 . . . Part Schematics Acquired 7 | . . . . . . 2 . 5 . Parts Built 8 | . . . . . . 4 . 4 . Authchips . | . . . . . . . . . . Time 761 | . . . . . . 446 . 315 . Total Part Build Rating 34 | . . . . . . 16 . 18 . Parts Repaired 7 | . . . . . . 1 . 4 2 Time 368 | . . . . . . 38 . 210 120 Parts Recycled . | . . . . . . . . . . Recycled Matter 411 | . . . . . . . . 411 . Retrieved Matter . | . . . . . . . . . . Retrieved Components . | . . . . . . . . . . Parts Scanalyzed . | . . . . . . . . . . Part Schematics Acquired . | . . . . . . . . . . Parts Damaged . | . . . . . . . . . . Bothacking | -11 -10 -10 -10 -9 -8 -7 -7 -6 -6 ------------ Run | Yrd Mat Min Exi Min Mat Fac Sto Fac Ext Used RIF Installer . | . . . . . . . . . . Robots Hacked . | . . . . . . . . . . Non-combat . | . . . . . . . . . . Combat . | . . . . . . . . . . Robot Hacks Applied . | . . . . . . . . . . Relay Couplers Released . | . . . . . . . . . . Fabnet Peak Effective % . | . . . . . . . . . . Robots Rewired . | . . . . . . . . . . Allies Hacked . | . . . . . . . . . . Hacks Repelled . | . . . . . . . . . . Allies | -11 -10 -10 -10 -9 -8 -7 -7 -6 -6 -------- Run | Yrd Mat Min Exi Min Mat Fac Sto Fac Ext Total Allies 17 | . . . . . 1 4 . 4 8 Largest Group 4 | . . . . . 1 4 . 3 4 Highest-Rated Group 121 | . . . . . 10 48 . 46 121 Highest-Rated Ally 39 | . . . . . 10 12 . 26 39 Total Orders 4 | . . . . . . . . 4 . STAY 2 | . . . . . . . . 2 . FOLLOW 2 | . . . . . . . . 2 . Ally Attacks 139 | . . . . . . 56 . . 83 Total Damage 2026 | . . . . . . 549 . . 1477 Kills 24 | . . . . . . 11 . . 13 Allies Corrupted . | . . . . . . . . . . Allies Melted 1 | . . . . . . . . . 1 Intel | -11 -10 -10 -10 -9 -8 -7 -7 -6 -6 ------- Run | Yrd Mat Min Exi Min Mat Fac Sto Fac Ext Robot Analysis Total 1 | . 1 . . . . . . . . Derelict Logs Recovered 2 | . . 1 . 1 . . . . . Drone Launches 3 | . . . . . . . . . 3 Drone Recoveries . | . . . . . . . . . . Exploration | -11 -10 -10 -10 -9 -8 -7 -7 -6 -6 ------------- Run | Yrd Mat Min Exi Min Mat Fac Sto Fac Ext Turns Passed 12624 | 187 1537 558 398 492 1274 3075 185 4023 895 Spaces Moved 12452 | 85 818 280 245 243 678 3871 391 5004 837 Core 19 | 2 . . . . . . . . 17 Treads 2158 | 83 818 280 245 243 489 . . . . Legs . | . . . . . . . . . . Wheels 345 | . . . . . 189 156 . . . Hover . | . . . . . . . . . . Flight 9930 | . . . . . . 3715 391 5004 820 Fastest Speed 5 | 50 160 160 160 160 115 26 14 23 5 Average Speed 50 | 157 160 162 160 160 147 29 25 23 24 Slowest Speed 250 | 160 160 240 160 160 240 115 94 26 250 Overloaded Moves 47 | . . . . . . . 15 . 32 Propulsion Burnouts . | . . . . . . . . . . Robots Hopped 37 | . . . . . . 13 1 17 6 Cave-ins Triggered . | . . . . . . . . . . Exploration Rate (%) 59 | 5 96 55 41 58 46 72 65 81 77 Regions Visited 9 Branch Regions 5 Pre-discovered Areas 1 | . . . . 1 . . . . . Known Exits Taken 2 | . . . . . 1 1 . . . Unknown Exits Taken 7 | 1 1 1 1 1 . . 1 1 . Scrap Searched 2 | . . 1 . 1 . . . . . Spaces Dug 139 | . . . . . 2 50 9 76 2 Terrain Destroyed 196 | . . . . 45 14 50 9 76 2 Melee 138 | . . . . . 1 50 9 76 2 Projectile 1 | . . . . . 1 . . . . AOE 57 | . . . . 45 12 . . . . Terrain Rammed . | . . . . . . . . . . Walls Destroyed . | . . . . . . . . . . Machines Disabled . | . . . . . . . . . . Actions | -11 -10 -10 -10 -9 -8 -7 -7 -6 -6 --------- Run | Yrd Mat Min Exi Min Mat Fac Sto Fac Ext Total 18113 | 118 960 339 253 341 833 5660 457 7651 1501 Wait 4926 | . 52 18 . 92 35 1588 56 2514 571 Move 12373 | 84 817 279 244 242 677 3845 388 4972 825 Hop 33 | . . . . . . 12 1 14 6 Pick Up 79 | 10 9 4 2 1 7 32 . 13 1 Fast Attach 49 | 4 5 3 . . 10 16 1 7 3 Attach 35 | 2 1 2 3 . 4 14 1 2 6 Detach 4 | . . . . . . 3 . . 1 Swap 50 | . 5 6 . 1 13 13 . 12 . Drop 105 | . 14 5 4 . 19 45 . 14 4 Fire 165 | 18 54 22 . 5 66 . . . . Melee 220 | . . . . . 2 92 10 103 13 Ram . | . . . . . . . . . . Kick . | . . . . . . . . . . Crush 3 | . 3 . . . . . . . . Escape Stasis 71 | . . . . . . . . . 71 Rewire . | . . . . . . . . . . Trap . | . . . . . . . . . . Miscellaneous . | . . . . . . . . . . Route ------- -11/Scrapyard -10/Materials (discovered 5 exits: [*Mat x3] / *Min / [Sub]) -10/Mines -10/Exiles -9/Mines -8/Materials (discovered 2 exits: *Fac x2) -7/Factory (discovered 5 exits: *Fac / *Sto x2 / *Low x2) -7/Storage -6/Factory (discovered 5 exits: *Fac / [*Low x2] / *Ext x2) -6/Extension (discovered 2 exits: Fac x2) History --------- Turn | Location | Event 43 | -11/Scrapyard | Discovered new exit (range 16) 188 | -11/Scrapyard | Entered Materials 317 | -10/Materials | Build established: Mutant 563 | -10/Materials | Discovered new exit (range 7) 722 | -10/Materials | Discovered new exit (range 10) 885 | -10/Materials | Discovered new exit (range 6) 1462 | -10/Materials | Discovered new exit (range 6) 1488 | -10/Materials | Discovered new exit (range 14) 1725 | -10/Materials | Entered Mines 1730 | -10/Mines | Met a Derelict bent on vengeance 1739 | -10/Mines | Core integrity fell below 50% 1973 | -10/Mines | Learned 4 Materials zone layouts 2011 | -10/Mines | Found the Drone Emporium 2021 | -10/Mines | Found Prototype Device 2033 | -10/Mines | Identified Thief Drone Bay 2044 | -10/Mines | Deemed a non-threat by the Exiles lab entrance 2044 | -10/Mines | Discovered new exit (range 5) 2121 | -10/Mines | Joined a pair of Derelicts in attacking an 0b10 outpost 2147 | -10/Mines | Core integrity fell below 20% 2283 | -10/Mines | Entered Exiles 2323 | -10/Exiles | Met 8R-AWN 2350 | -10/Exiles | Met EX-HEX 2400 | -10/Exiles | Met EX-BIN 2417 | -10/Exiles | Aligned with FarCom system 2419 | -10/Exiles | Given EX-Vault access code 2457 | -10/Exiles | Opened EX-Vault 2470 | -10/Exiles | Found AWS/Thermal 2503 | -10/Exiles | Warned to stay clear of 0b10 Research branches 2659 | -10/Exiles | Discovered new exit (range 14) 2681 | -10/Exiles | Left Exiles lab with AWS/Thermal 2681 | -10/Exiles | Entered Mines 2682 | -9/Mines | Met a Derelict testing a Signal Generator 2688 | -9/Mines | Found Signal Generator 2814 | -9/Mines | Learned location of Zion (-7) 2926 | -9/Mines | Discovered new exit (range 10) 3173 | -9/Mines | Entered Materials 3173 | -8/Materials | Evolved 4 slots: Propulsion x1, Utility x3 3174 | -8/Materials | Identified exit to Factory 3384 | -8/Materials | Garrison activated, responded to threat 4016 | -8/Materials | Discovered exit to Factory (range 15) 4447 | -8/Materials | Entered Factory 4447 | -7/Factory | Evolved 2 slots: Propulsion x1, Utility x1 5088 | -7/Factory | Repaired Katana 5109 | -7/Factory | Build established: Hacker-Scout 5372 | -7/Factory | Discovered new exit (range 5) 5423 | -7/Factory | Discovered new exit (range 10) 5524 | -7/Factory | Discovered new exit (range 13) 5700 | -7/Factory | Identified exit to Storage 5700 | -7/Factory | Identified exit to Lower Caves 5986 | -7/Factory | Fabricated S-27 Virus? 6128 | -7/Factory | Fabricated Cld. VTOL Module? 6274 | -7/Factory | Fabricated Cld. VTOL Module (x1) 6735 | -7/Factory | Fabricated Cld. VTOL Module? 7318 | -7/Factory | Fabricated Cld. VTOL Module? 7522 | -7/Factory | Entered Storage 7654 | -7/Storage | Core integrity fell below 50% 7703 | -7/Storage | Discovered new exit (range 16) 7707 | -7/Storage | Entered Factory 7707 | -6/Factory | Evolved 2 slots: Propulsion x1, Utility x1 7886 | -6/Factory | Build established: Hacker-Sprinter 7893 | -6/Factory | Discovered new exit (range 11) 8087 | -6/Factory | Fabricated Cld. VTOL Module (x1) 8148 | -6/Factory | Discovered new exit (range 10) 8241 | -6/Factory | Discovered new exit (range 5) 8311 | -6/Factory | Repaired Cld. VTOL Module 8318 | -6/Factory | Cargo convoy interrupted 8403 | -6/Factory | Fabricated Adv. Terrain Scanner (x2) 8579 | -6/Factory | Fabricated Cld. VTOL Module? 8698 | -6/Factory | Build established: Hacker-Scout 9279 | -6/Factory | Discovered new exit (range 17) 9899 | -6/Factory | Repaired Cld. VTOL Module 10245 | -6/Factory | Repaired Cld. VTOL Module 10316 | -6/Factory | Repaired Cld. VTOL Module 10875 | -6/Factory | Discovered new exit (range 17) 11730 | -6/Factory | Entered Extension 11808 | -6/Extension | Identified exit to Factory 11864 | -6/Extension | Rescued a captive Derelict 11867 | -6/Extension | Rescued a captive Derelict 11929 | -6/Extension | Rescued a captive Derelict 11930 | -6/Extension | Rescued a captive Derelict 12004 | -6/Extension | Repaired Adv. Terrain Scanner 12020 | -6/Extension | Rescued a captive Derelict 12191 | -6/Extension | Repaired Cld. VTOL Module 12199 | -6/Extension | Spotted B-75 Beast 12371 | -6/Extension | Spotted B-75 Beast 12419 | -6/Extension | Core integrity fell below 50% 12429 | -6/Extension | Lost 6 parts (1p2n3u) 12445 | -6/Extension | Rescued a captive Derelict 12446 | -6/Extension | Rescued a captive Derelict 12456 | -6/Extension | System corruption reached 10% 12522 | -6/Extension | Lost 5 allies 12586 | -6/Extension | Core integrity fell below 20% 12625 | -6/Extension | Destroyed by G-50 Soldier with Heavy Laser Last Messages --------------- SECURING TERMINAL." 12568_ Connecting with Terminal... >>Trojan(Assimilate) Trojan loaded successfully. Testing... System interface override in place. 12569_ Connecting with Terminal... 12569_ ALERT: Suspicious activity at Terminal E011. Dispatching Investigation squad. 12576_ Destroyed Unknown Engine. 12576_ O-16 Technician destroyed. 12579_ System corrupted: Heat flow error (+230). 12580_ Acquired Hacking Suite. 12606_ G-50 Soldier Hvy. Laser severed. 12616_ Cld. VTOL Module destroyed. 12616_ Dropped Cld. VTOL Module. 12617_ Dropped Med. Storage Unit. 12617_ Discarded Molecular Scythe. 12620_ Critical hit (Burn: +37). 12621_ Hacking Suite destroyed. Map ----- +----------------------------------------------------+ | | | | | | | | | | | | | | | | | | | | | | | | | | | | | | | | | | | | | ????????????????????????????????????? | | ?##?????????????????????????????????? | | ?????????????????????????????????? | | #######################??????????? | | #??????????? | | ??#### g #??????????? | | ????????# gg #######????? | | ????????# [ g ^@!= #????? | | ????????####+######## != #????? | | ?????????# !== #???# % #????? | | ?????????# != Y#???# /^ ##???? | | ?????????# [ #???# "#???? | | ?????????# [[ Y#???# """ T#???? | | ?????????# #???# "T "#???? | | ??#####??# #???# """ ##???? | | ### #########/##### #????? | | #????? | | ### ######################## #????? | | ??#####??????????????????????# #????? | | ?????????????????????????????# #????? | | ?????????????????????????????# #????? | | ?????????????????????????????# #????? | | ?????????????????????????????# #????? | | ?????????????????????????????# #????? | | ?????????????????????????????# #????? | | ?????????????????????????????# #????? | | ?????????????????????????????? #????? | | ?????????????????????????????? #????? | | ?????????????????????????????? #????? | | ?????????????????????????????? ?????? | | ?????????????????????????????? ?????? | | ?????????????????????????????? ?????? | +----------------------------------------------------+ Best States ------------- Heat Dissipation 45 Energy Generation 18 Energy Capacity 265 Matter Stores 300 Matter Capacity 300 Sight Range 22 Terrain Scan Range 20 Terrain Scan Density 310 Corruption Block 8 Armor Coverage 450 Utility Shielding 66 Evasion (%) 65 Recoil Reduction 3 Salvage Targeting 1 Offensive Hacking 40 Defensive Hacking 10 Item Schematics ----------------- Cld. VTOL Module | -7/Factory | Hacked Imp. Plasma Cutter | -7/Factory | Hacked Adv. Terrain Scanner | -6/Factory | Hacked Cloaking Device | -6/Factory | Hacked Imp. System Guard | -6/Factory | Hacked Adv. Cryofiber Web | -6/Factory | Hacked Adv. Hacking Suite | -6/Factory | Hacked Robot Schematics ------------------ None Fabricated ------------ S-27 Virus | x4 | -7/Factory | Preloaded Cld. VTOL Module | x1 | -7/Factory Cld. VTOL Module | x1 | -7/Factory Cld. VTOL Module | x1 | -7/Factory Cld. VTOL Module | x1 | -7/Factory Cld. VTOL Module | x1 | -6/Factory Adv. Terrain Scanner | x2 | -6/Factory Cld. VTOL Module | x1 | -6/Factory Alien Tech Used ----------------- None Achievements -------------- None Challenges ------------ None Game ------ Seed PulseEnergyProjector Manual? 0 Play Time 02:21:08 Cumulative 78.0 hours Start 2024.12.01 @ 14:43:27 End 2024.12.01 @ 17:22:52 Sessions 1 Manual Loads 0 Difficulty Rogue Special Mode None Game No. 78 Rogue 78 Adventurer 0 Explorer 0 Win Type - Total 0 Types 0/0/0/0/0/0/0/0/0 Lore% 11 Gallery% 34 Achievement% 33 Wizard Run 0 Options --------- Layout 2 ASCII 0 Keyboard 0 Movement Mouse Keybinds 0 Fullscreen 2 Font 16/SmallcapsGlow Map View 55x47 Zoom Use 2% Tactical HUD 1 Map Filters NONE Filters NONE Steam 1 RUN: 8301cfe8-a229-402b-8433-82a9a475004d